bitfinex/quotes_ETHUSD_20260131
["timestamp","ask_amount","ask_price","bid_price","bid_amount"]
[1769866956536,0.1024,2628.2,2626.8,13.15846088]
[1769866956736,0.1024,2628.1,2626.8,13.15846088]
[1769866957167,12.43512741,2628.2,2626.8,13.15846088]
[1769866957572,0.1034,2628.4,2626.8,14.11016691]
[1769866957573,0.001,2628.4,2626.8,14.11016691]
[1769866957787,0.001,2627.7,2626.8,13.15846088]
[1769866957949,0.001,2627.7,2626.9,1.41102012]
[1769866958151,0.001,2628.4,2627.0,15.06500624]
[1769866958360,0.001,2628.4,2627.0,15.06501729]
[1769866958680,0.001,2628.4,2627.0,14.11337454]
[1769866958844,0.001,2628.4,2627.0,15.06502376]
[1769866961140,12.31952632,2628.3,2626.6,13.39958979]
[1769866961342,13.55157895,2628.2,2626.7,16.48940548]
[1769866961757,13.55157895,2628.2,2626.8,14.35131171]
[1769866962158,13.55157895,2628.2,2626.9,0.95169201]
[1769866962845,13.55157895,2628.2,2627.0,0.95165442]
[1769866963045,0.001,2628.4,2627.0,14.35124421]
[1769866963748,0.001,2628.4,2626.7,15.53765877]
[1769866963749,12.32052632,2628.4,2626.7,15.53765877]
[1769866964268,12.32052632,2628.4,2626.8,0.95172739]
[1769866964659,12.32052632,2628.4,2626.9,0.798]
[1769866965473,12.32052632,2628.4,2626.9,14.19758979]
[1769866965673,1.23205263,2628.3,2627.0,14.91452155]
[1769866966241,13.55157895,2628.3,2627.0,1.51493176]
[1769866966442,13.55157895,2628.3,2626.9,0.798]
[1769866967055,13.55157895,2628.3,2627.0,0.798]
[1769866969281,13.55157895,2628.3,2627.1,0.798]
[1769866970071,14.50276803,2628.3,2627.0,0.0011]
[1769866970275,12.32052632,2628.1,2627.0,0.0011]
[1769866971580,13.27181629,2628.1,2627.0,0.0011]
[1769866973886,13.27181629,2628.1,2626.8,0.7991]
[1769866973887,12.31952632,2627.9,2626.8,0.0011]
[1769866974259,12.31952632,2627.7,2626.5,0.0011]
[1769866975971,12.31952632,2627.5,2626.5,0.0011]
[1769866976168,12.31952632,2627.5,2626.3,0.0011]
[1769866976371,12.31952632,2627.3,2626.3,0.0011]
[1769866979287,1.32709649,2627.4,2626.3,0.0011]
[1769866980971,1.32709649,2627.4,2626.3,13.40068979]
[1769866981666,12.31952632,2627.6,2626.3,13.40068979]
[1769866982259,0.1024,2627.8,2626.3,13.40068979]
[1769866983680,0.1024,2627.8,2626.5,0.0011]
[1769866983888,0.1024,2627.8,2626.5,13.40068979]
[1769866986182,13.37329805,2627.8,2626.5,13.40068979]
[1769866986488,12.31952632,2627.6,2626.5,0.0011]
[1769866987882,12.31952632,2627.6,2626.5,12.50239737]
[1769866988080,1.33742981,2627.7,2626.5,12.50239737]
[1769866988805,1.33742981,2627.7,2626.3,0.0011]
[1769866988806,13.56692323,2627.5,2626.3,0.0011]
[1769866989025,13.66932323,2627.3,2626.0,0.0011]
[1769866989915,13.66932323,2627.1,2626.0,0.0011]
[1769866991724,14.124807,2627.0,2626.0,0.0011]
[1769866992001,13.56692323,2626.3,2625.2,0.0011]
[1769866992372,13.56692323,2626.1,2625.2,0.0011]
[1769866992771,13.56692323,2625.9,2625.2,0.0011]
[1769866993206,13.56692323,2625.8,2624.3,0.0011]
[1769866993510,13.56692323,2625.6,2624.3,0.0011]
[1769866993709,13.56692323,2625.4,2624.3,0.0011]
[1769866993876,13.56692323,2625.2,2624.3,0.0011]
[1769866996307,0.1024,2625.5,2624.3,0.0011]
[1769866996308,0.1024,2625.5,2625.1,0.0011]
[1769866996507,0.1024,2625.5,2624.3,0.0011]
[1769866996706,1.56455079,2625.5,2624.3,0.0011]
[1769866997285,1.46215079,2625.5,2624.3,12.50239737]
[1769866997607,0.1024,2625.8,2624.3,12.50239737]
[1769866997822,0.1024,2626.3,2624.5,12.50129737]
[1769866998118,13.66932323,2626.3,2624.6,1.32992974]
[1769866998422,14.518869,2626.2,2624.6,1.32992974]
[1769866998704,14.518869,2626.2,2624.6,13.83122711]
[1769866999504,0.1024,2626.6,2624.6,13.83122711]
[1769866999708,15.73887323,2626.6,2624.8,12.50129737]
[1769866999885,13.66932323,2626.6,2624.8,12.50129737]
[1769867002278,13.56692323,2627.0,2624.9,12.50129737]
[1769867002479,13.66932323,2626.9,2624.9,12.50129737]
[1769867002790,13.56692323,2626.9,2624.9,12.50129737]
[1769867002990,13.56692323,2626.9,2625.1,12.50129737]
[1769867002991,1.55425808,2626.8,2625.1,12.50129737]
[1769867004004,15.12118131,2626.8,2625.1,12.50129737]
[1769867004814,1.45185808,2626.8,2625.1,12.50129737]
[1769867005023,0.1024,2627.1,2625.1,12.50129737]
[1769867005024,1.05402987,2627.1,2625.1,12.50129737]
[1769867005506,14.6209531,2627.1,2625.1,12.50129737]
[1769867007231,14.6209531,2627.1,2625.1,13.45363955]
[1769867007740,14.6209531,2627.1,2625.2,12.50129737]
[1769867007944,0.1024,2626.9,2625.4,12.50129737]
[1769867008151,0.1024,2626.9,2625.6,12.50129737]
[1769867008950,0.001,2626.6,2625.6,12.50129737]
[1769867010021,10.25,2627.4,2625.6,13.45345772]
[1769867010200,14.71733977,2627.7,2625.8,12.50129737]
[1769867010201,0.7148,2627.3,2625.8,12.50129737]
[1769867010406,0.001,2627.9,2625.8,12.50129737]
[1769867010707,0.1024,2627.8,2625.8,12.50129737]
[1769867011107,1.05376787,2627.8,2626.0,12.50129737]
[1769867013221,0.1024,2627.8,2626.0,12.50129737]
[1769867013952,13.66932323,2627.8,2626.0,12.50129737]
[1769867014435,0.001,2627.9,2626.3,12.50129737]
[1769867014636,0.001,2627.9,2626.5,12.50129737]
[1769867016332,0.001,2627.9,2626.7,12.50129737]
[1769867017340,0.001,2628.1,2626.7,12.78147379]
[1769867018950,0.001,2628.1,2626.7,13.73323386]
[1769867020040,0.001,2628.1,2626.8,14.5]
[1769867020213,0.001,2628.1,2626.9,12.78147379]
[1769867020413,0.001,2628.1,2627.1,12.78147379]
[1769867020613,0.001,2627.9,2627.2,14.1396974]
[1769867021055,0.001,2628.4,2627.3,13.3416974]
[1769867021715,0.001,2628.4,2627.2,0.798]
[1769867021910,0.001,2628.4,2627.2,14.1396974]
[1769867022115,1.26458631,2628.4,2627.3,1.41396974]
[1769867022453,13.89944944,2628.4,2627.2,0.798]
[1769867022615,12.63586313,2628.4,2627.2,0.798]
[1769867023014,13.58703603,2628.4,2627.0,1.34537253]
[1769867023330,13.58703603,2628.4,2627.0,0.798]
[1769867024434,12.63486313,2628.2,2627.0,0.798]
[1769867024636,0.9521729,2628.4,2627.0,0.798]
[1769867024637,12.63486313,2628.0,2627.0,0.798]
[1769867025249,12.63486313,2627.8,2627.0,0.798]
[1769867025449,12.63486313,2627.8,2626.2,0.798]
[1769867025741,14.00372244,2627.7,2626.2,14.1396974]
[1769867027347,1.36885931,2627.7,2626.2,14.1396974]
[1769867027646,0.1024,2627.9,2626.2,14.1396974]
[1769867029317,12.63486313,2628.0,2626.4,13.3416974]
[1769867029840,13.5861616,2628.0,2626.4,13.3416974]
[1769867030152,13.5861616,2628.0,2626.5,0.798]
[1769867030347,13.99347929,2627.9,2626.6,1.41396974]
[1769867030646,12.63486313,2627.9,2626.6,1.41396974]
[1769867031227,12.63486313,2627.9,2626.6,14.75566714]
[1769867032343,12.63486313,2628.2,2626.7,13.3427974]
[1769867033652,13.58609035,2628.2,2626.7,13.3427974]
[1769867033865,12.63486313,2628.0,2626.8,1.47567671]
[1769867034562,12.63486313,2628.0,2626.8,14.81737411]
[1769867035261,13.58618806,2628.0,2626.7,0.0011]
[1769867040832,12.63486313,2627.9,2626.7,0.0011]
[1769867041535,3.80448474,2628.5,2626.7,13.3427974]
[1769867041536,0.1034,2628.4,2626.7,13.3427974]
[1769867041978,13.68941654,2628.4,2626.7,13.3427974]
[1769867042177,12.63486313,2628.2,2626.8,14.67597714]
[1769867042478,0.1034,2628.4,2626.8,14.67597714]
[1769867043182,0.001,2628.4,2626.8,14.67597714]
[1769867044485,0.001,2628.4,2626.8,14.67707714]
[1769867044686,0.001,2628.2,2627.0,13.3416974]
[1769867046973,0.001,2628.4,2627.1,13.93243147]
[1769867047478,0.001,2628.4,2627.3,13.93243147]
[1769867047679,0.001,2628.8,2627.5,13.69886117]
[1769867048174,0.001,2628.8,2627.7,13.69886117]
[1769867054456,0.001,2628.8,2627.7,14.65025774]
[1769867054656,0.001,2628.8,2627.7,13.69886117]
[1769867055162,0.001,2628.8,2627.7,14.65026107]
[1769867055355,0.001,2628.8,2627.7,13.69886117]
[1769867055557,0.001,2628.8,2627.9,13.69886117]
[1769867056759,0.001,2628.6,2627.9,13.69886117]
[1769867059875,0.001,2628.8,2627.9,13.69886117]
[1769867061280,0.001,2628.8,2628.0,0.798]
[1769867061579,0.001,2628.8,2628.0,14.49686117]
[1769867061782,0.001,2628.8,2628.1,1.44968612]
[1769867063597,0.001,2629.4,2628.1,1.44968612]
[1769867063598,0.001,2629.4,2628.5,13.69886117]
[1769867063794,0.001,2629.4,2628.6,0.798]
[1769867069299,13.34706611,2629.4,2628.4,0.798]
[1769867069673,0.001,2629.2,2628.4,0.798]
[1769867071371,13.34706611,2629.2,2628.4,0.798]
[1769867071566,1.33470661,2629.1,2628.4,0.798]
[1769867072873,0.001,2629.2,2628.4,0.798]
[1769867073294,0.001,2629.2,2628.4,14.49686117]
[1769867074104,0.001,2629.2,2628.4,0.798]
[1769867075511,13.34706611,2629.2,2628.4,0.798]
[1769867076072,13.34706611,2629.2,2628.1,0.0011]
[1769867076300,13.34606611,2629.0,2628.1,0.0011]
[1769867080414,0.001,2629.2,2628.1,13.05012701]
[1769867081899,0.001,2629.2,2628.3,0.0011]
[1769867082308,0.001,2629.0,2628.3,0.0011]
[1769867084323,0.001,2629.2,2628.3,0.0011]
[1769867085422,0.1024,2629.6,2628.3,13.05012701]
[1769867085593,1.35429305,2629.6,2628.4,14.35403971]
[1769867086212,13.77082356,2629.6,2628.4,14.35403971]
[1769867086401,13.66842356,2629.6,2628.4,14.35403971]
[1769867086600,12.41653051,2629.6,2628.4,1.3050127]
[1769867086815,12.41653051,2629.6,2628.3,0.0011]
[1769867088101,12.41653051,2629.6,2628.3,13.05012701]
[1769867095633,12.41653051,2629.6,2628.5,13.05012701]
[1769867096026,12.41653051,2629.6,2628.5,0.0011]
[1769867096330,12.41753051,2629.4,2628.5,0.0011]
[1769867097816,0.001,2629.4,2628.5,14.35524971]
[1769867099613,0.001,2629.4,2628.8,5.27198452]
[1769867101218,12.41653051,2629.7,2628.8,5.27198452]
[1769867101419,12.41653051,2629.5,2628.5,6.57820722]
[1769867102649,12.41653051,2629.5,2628.8,5.27198452]
[1769867104322,12.41653051,2629.5,2628.5,19.62723423]
[1769867104549,12.41653051,2629.5,2628.5,6.57820722]
[1769867105621,1.24165305,2629.6,2628.6,13.04902701]
[1769867105823,13.65818356,2629.6,2628.6,1.43552497]
[1769867106018,13.65818356,2629.6,2628.5,0.0011]
[1769867107362,15.40590333,2629.6,2628.5,0.0011]
[1769867108019,13.59547785,2629.3,2628.5,0.0011]
[1769867108858,13.59547785,2629.3,2628.3,0.0011]
[1769867109022,13.59547785,2629.1,2628.3,0.0011]
[1769867110963,13.59547785,2628.9,2628.1,0.0011]
[1769867113945,14.39247785,2629.1,2628.1,0.0011]
[1769867115674,15.34337898,2629.1,2628.1,0.0011]
[1769867115864,13.59547785,2628.9,2627.2,0.0011]
[1769867116041,13.59547785,2628.9,2627.2,12.67215925]
[1769867117654,14.54647722,2628.9,2627.2,12.67215925]
[1769867118574,13.59547785,2628.7,2627.3,1.26721592]
[1769867118773,13.59547785,2628.5,2627.2,12.67215925]
[1769867120164,13.59547785,2628.5,2627.4,0.0011]
[1769867120361,13.59547785,2628.5,2627.4,12.67215925]
[1769867121283,13.59547785,2628.5,2627.4,0.0011]
[1769867121475,13.59547785,2628.3,2627.4,0.0011]
[1769867124491,14.5466642,2628.3,2627.4,0.0011]
[1769867124787,14.5466642,2628.3,2627.2,0.0011]
[1769867131280,13.59547785,2628.1,2627.2,0.0011]
[1769867131591,14.39347785,2628.1,2627.2,0.0011]
[1769867131792,13.59547785,2627.9,2627.2,0.0011]
[1769867133388,1.43934779,2628.0,2627.4,0.0011]
[1769867133699,15.03482564,2628.0,2627.4,0.0011]
[1769867134368,1.43934779,2628.0,2627.4,0.0011]
[1769867134569,0.798,2628.1,2627.4,0.0011]
[1769867135198,0.001,2628.3,2627.4,12.67215925]
[1769867135384,0.1034,2628.3,2627.4,12.67215925]
[1769867135982,0.001,2628.3,2627.4,12.67215925]
[1769867136599,13.59647785,2628.3,2627.4,0.0011]
[1769867136812,13.59547785,2628.1,2627.4,0.0011]
[1769867136979,13.48162072,2627.9,2627.2,0.0011]
[1769867137896,13.48162072,2627.9,2627.0,0.0011]
[1769867138391,13.48162072,2627.7,2626.8,0.0011]
[1769867138588,13.48162072,2627.5,2626.7,0.0011]
[1769867141811,12.4309057,2627.3,2626.7,0.0011]
[1769867141983,12.4309057,2627.3,2626.1,0.0011]
[1769867144097,13.38245512,2627.3,2626.1,0.0011]
[1769867144300,13.77939121,2627.2,2626.1,0.0011]
[1769867144499,12.4309057,2627.2,2626.1,0.0011]
[1769867145319,12.4309057,2627.2,2626.7,0.0011]
[1769867146905,13.2289057,2627.1,2626.7,0.0011]
[1769867147282,13.2289057,2627.1,2626.1,0.0011]
[1769867147489,12.4309057,2626.9,2626.1,0.0011]
[1769867148885,13.38260622,2626.9,2626.1,0.0011]
[1769867149292,12.4309057,2626.9,2626.1,0.0011]
[1769867149610,13.38260302,2626.9,2626.1,0.0011]
[1769867151127,12.4309057,2626.9,2626.1,0.0011]
[1769867151328,1.41804928,2627.0,2626.1,12.35878005]
[1769867151513,0.798,2627.1,2626.1,12.35878005]
[1769867153396,0.9004,2627.5,2626.1,12.35878005]
[1769867155522,13.3313057,2627.5,2626.1,12.35878005]
[1769867155740,13.2289057,2627.5,2626.1,12.35878005]
[1769867155926,1.32289057,2627.4,2626.3,12.35768005]
[1769867157337,1.32289057,2627.4,2626.3,12.35878005]
[1769867157538,0.001,2627.3,2626.3,12.35878005]
[1769867160756,12.4319057,2627.3,2626.3,12.35878005]
[1769867161433,12.4319057,2627.3,2626.3,0.0011]
[1769867161636,12.4309057,2627.1,2626.3,0.0011]
[1769867162441,1.37547963,2627.2,2626.3,12.35878005]
[1769867163012,0.001,2627.3,2626.3,12.35878005]
[1769867163741,12.4319057,2627.3,2626.3,12.35878005]
[1769867164645,0.1024,2627.8,2626.9,12.35768005]
[1769867164942,1.45609542,2627.8,2626.9,12.35768005]
[1769867166221,13.78460112,2627.8,2626.5,12.35768005]
[1769867166629,1.35369542,2627.8,2626.5,12.35768005]
[1769867166827,0.1024,2628.0,2626.5,12.35768005]
[1769867167025,12.62839234,2628.0,2626.5,12.35768005]
[1769867167350,12.52599234,2628.0,2626.8,13.36280133]
[1769867167523,0.001,2628.1,2627.1,13.36280133]
[1769867167724,13.47825268,2628.1,2626.7,13.36280133]
[1769867167926,12.52699234,2628.1,2626.7,13.36280133]
[1769867168853,13.32499234,2628.1,2626.7,13.36280133]
[1769867169620,13.32499234,2628.1,2627.1,0.0011]
[1769867169855,1.34273923,2628.0,2627.1,0.0011]
[1769867170050,0.001,2627.6,2627.1,0.0011]
[1769867170772,1.34273923,2628.0,2627.2,13.36280133]
[1769867170917,0.799,2628.1,2627.2,13.36280133]
[1769867171123,13.32499234,2628.1,2627.1,0.0011]
[1769867171351,14.27626028,2628.1,2627.1,0.0011]
[1769867171733,13.32499234,2628.1,2627.1,0.0011]
[1769867171934,12.52599234,2627.9,2627.1,0.0011]
[1769867172456,0.799,2628.1,2627.1,13.36390133]
[1769867172457,0.001,2628.1,2627.1,13.36390133]
[1769867174562,0.001,2628.1,2627.3,13.36280133]
[1769867174965,0.001,2628.3,2627.2,13.36280133]
[1769867175255,0.001,2628.3,2627.4,13.36280133]
[1769867175822,12.52599234,2629.3,2627.6,13.36280133]
[1769867176228,0.001,2629.4,2627.8,13.36280133]
[1769867176428,0.001,2629.4,2628.0,13.36280133]
[1769867176628,0.001,2629.4,2628.2,13.36280133]
[1769867178284,12.52699234,2629.4,2628.2,13.36280133]
[1769867178476,0.001,2629.4,2628.2,13.36280133]
[1769867181075,12.52699234,2629.4,2628.1,1.41608013]
[1769867181393,12.52699234,2629.4,2627.9,13.36280133]
[1769867182173,12.52599234,2629.1,2627.6,13.36280133]
[1769867182670,12.52599234,2629.1,2627.4,0.798]
[1769867183368,12.52599234,2628.9,2627.4,0.798]
[1769867183572,0.55980262,2629.2,2627.4,0.798]
[1769867183573,12.52599234,2628.7,2627.4,0.798]
[1769867184071,12.52599234,2628.7,2627.3,0.798]
[1769867184258,12.52599234,2629.0,2627.4,13.36280133]
[1769867184462,0.1024,2628.9,2627.4,13.36280133]
[1769867184664,13.89123157,2628.9,2627.6,13.36280133]
[1769867186181,12.52699234,2629.2,2627.6,13.36280133]
[1769867186482,0.1024,2629.1,2627.6,13.36280133]
[1769867186688,12.52699234,2629.2,2627.6,13.36280133]
[1769867186689,12.52699234,2629.2,2627.8,13.36280133]
[1769867186860,0.001,2629.2,2627.8,13.36280133]
[1769867187983,0.001,2629.2,2628.0,13.36280133]
[1769867188160,0.001,2629.2,2628.2,13.36280133]
[1769867189949,0.34867276,2629.8,2628.5,13.36280133]
[1769867190176,12.52599234,2630.4,2628.7,13.59637163]
[1769867190487,12.52599234,2630.9,2628.9,13.36280133]
[1769867190647,12.52599234,2630.7,2629.1,13.36280133]
[1769867190851,12.52599234,2631.1,2629.5,13.36280133]
[1769867191390,0.3343178,2631.2,2629.5,13.36280133]
[1769867192073,0.3343178,2631.2,2629.3,6.4619858]
[1769867192074,0.3343178,2631.2,2629.7,13.36280133]
[1769867192274,0.3343178,2631.2,2629.9,13.36280133]
[1769867192477,0.3343178,2631.2,2628.9,13.36280133]
[1769867192478,12.52599234,2631.0,2628.9,13.36280133]
[1769867192697,12.52599234,2630.8,2629.1,14.31369466]
[1769867192914,12.52599234,2630.8,2629.3,13.36280133]
[1769867193069,0.1024,2630.7,2629.3,13.36280133]
[1769867193269,0.1024,2630.7,2628.6,13.36280133]
[1769867193270,0.1024,2630.4,2628.6,13.36280133]
[1769867193517,12.52599234,2629.6,2627.9,13.36280133]
[1769867193665,12.52599234,2629.4,2627.9,14.16080133]
[1769867194089,12.52599234,2629.2,2627.9,14.16080133]
[1769867194276,13.87367392,2629.2,2628.0,1.41608013]
[1769867194704,12.52599234,2629.0,2627.8,0.797]
[1769867195286,12.52599234,2629.0,2627.5,13.36280133]
[1769867195484,12.52599234,2628.6,2627.1,0.0011]
[1769867195696,12.52599234,2628.6,2627.3,0.797]
[1769867196214,13.47708338,2628.6,2627.3,0.797]
[1769867196508,12.52599234,2628.6,2627.3,0.797]
[1769867197108,12.52599234,2628.6,2627.1,0.0011]
[1769867197284,1.25259923,2628.5,2627.1,0.7991]
[1769867197682,1.25259923,2628.5,2627.1,13.85979642]
[1769867197886,0.1024,2629.3,2627.4,13.06069642]
[1769867198082,13.1329865,2629.0,2627.5,0.798]
[1769867198278,13.2353865,2628.9,2627.5,0.798]
[1769867198477,13.2353865,2628.9,2627.6,1.38586964]
[1769867198478,1.32353865,2628.8,2627.6,1.38586964]
[1769867198793,13.1329865,2628.8,2627.6,1.38586964]
[1769867198998,0.1024,2628.9,2627.6,1.38586964]
[1769867199307,0.1024,2629.1,2627.6,14.44656606]
[1769867202778,17.27066532,2629.6,2627.6,14.44656606]
[1769867202980,0.1024,2629.5,2627.8,12.89369552]
[1769867203181,13.57017125,2629.5,2627.8,12.89369552]
[1769867204706,13.57017125,2629.3,2627.8,12.89369552]
[1769867204879,13.57017125,2629.3,2627.9,1.43383521]
[1769867205074,13.57017125,2629.3,2628.0,0.798]
[1769867205503,13.46777125,2629.3,2628.0,0.798]
[1769867207107,14.52090586,2629.6,2628.0,13.69169552]
[1769867207313,0.48562439,2629.4,2628.0,13.69169552]
[1769867208210,3.80216908,2630.1,2628.0,13.69169552]
[1769867208211,14.41837852,2629.9,2628.0,13.69169552]
[1769867208513,13.46777125,2629.7,2628.1,0.798]
[1769867208709,13.46777125,2629.3,2627.6,12.89369552]
[1769867208910,13.46777125,2629.3,2627.6,13.69169552]
[1769867209112,13.46777125,2629.3,2627.8,12.89369552]
[1769867209113,1.44185802,2629.2,2627.8,12.89369552]
[1769867209312,13.46777125,2629.6,2627.8,12.89369552]
[1769867209810,14.41848776,2629.6,2627.8,12.89369552]
[1769867210379,14.41848776,2629.6,2627.7,2.16727955]
[1769867210380,13.46777125,2629.2,2627.7,2.16727955]
[1769867210606,13.46777125,2629.0,2627.6,0.798]
[1769867211010,14.41873708,2629.0,2627.6,0.798]
[1769867211411,14.41873708,2629.0,2627.5,0.0011]
[1769867211587,14.41870392,2629.0,2627.5,0.0011]
[1769867211787,1.44187039,2628.9,2627.5,1.29068955]
[1769867212096,14.90964164,2628.9,2627.5,1.29068955]
[1769867213416,15.86062946,2628.9,2627.5,1.29068955]
[1769867213618,13.46777125,2628.5,2627.5,0.0011]
[1769867213999,13.46777125,2628.3,2627.3,0.0011]
[1769867214313,13.46777125,2628.3,2626.9,0.0011]
[1769867214314,13.46777125,2628.1,2626.9,0.0011]
[1769867215211,13.46777125,2627.9,2626.9,0.0011]
[1769867215430,14.41913741,2627.8,2626.9,0.0011]
[1769867215991,13.46777125,2627.6,2626.3,0.0011]
[1769867216608,13.46777125,2627.4,2626.3,0.0011]
[1769867216949,14.82478838,2627.3,2626.3,0.0011]
[1769867217217,13.46777125,2627.3,2626.3,0.0011]
[1769867217621,0.1024,2627.5,2626.3,0.0011]
[1769867217806,14.52164886,2627.5,2626.3,0.0011]
[1769867218327,14.52164886,2627.5,2627.1,0.0011]
[1769867218522,14.52164886,2627.5,2626.3,0.0011]
[1769867218523,13.57017125,2627.3,2626.9,0.0011]
[1769867220015,1.8327548,2627.4,2626.9,0.0011]
[1769867220211,0.1024,2627.5,2626.9,0.0011]
[1769867221220,0.34844261,2627.6,2626.9,0.0011]
[1769867222300,0.3326912,2628.6,2626.9,12.89479552]
[1769867222655,8.172611,2628.5,2627.0,1.28947955]
[1769867222939,13.46777125,2628.4,2626.9,0.0011]
[1769867223096,8.172611,2628.5,2626.9,12.89479552]
[1769867223097,0.1024,2628.5,2626.9,12.89479552]
[1769867223292,1.75352755,2628.5,2627.1,12.89369552]
[1769867224409,0.3326912,2628.6,2627.1,12.89369552]
[1769867225037,0.3326912,2628.6,2627.1,13.84531097]
[1769867225230,0.3326912,2628.6,2627.3,12.89369552]
[1769867225630,14.26577125,2629.5,2627.6,12.89369552]
[1769867225799,0.1024,2629.4,2627.8,12.89369552]
[1769867225999,1.42657713,2629.4,2627.9,14.26286507]
[1769867226215,14.89434838,2629.4,2627.9,14.26286507]
[1769867227414,1.42657713,2629.4,2627.9,14.26286507]
[1769867227638,0.1024,2629.7,2627.9,14.26286507]
[1769867227939,12.55090686,2629.5,2627.0,1.28947955]
[1769867228139,12.55090686,2629.3,2626.9,0.0011]
[1769867228341,12.55090686,2629.1,2626.9,0.0011]
[1769867228502,31.28023596,2629.2,2626.9,0.0011]
[1769867228503,12.55090686,2628.7,2626.9,0.0011]
[1769867228703,12.55090686,2628.3,2626.3,0.0011]
[1769867228908,12.55090686,2628.1,2626.3,0.0011]
[1769867229117,12.55090686,2627.9,2626.3,0.0011]
[1769867229320,12.55090686,2627.7,2626.3,0.0011]
[1769867229536,1.05398343,2627.2,2626.3,0.0011]
[1769867229753,1.7308824,2627.1,2626.3,0.0011]
[1769867230428,0.9004,2627.2,2626.3,0.0011]
[1769867230651,13.34890686,2627.2,2626.3,0.0011]
[1769867230824,12.44850686,2627.0,2625.9,0.0011]
[1769867231021,12.44850686,2626.7,2625.9,0.0011]
[1769867231243,12.55090686,2626.5,2625.5,0.0011]
[1769867231444,0.1024,2626.0,2624.8,0.0011]
[1769867231659,14.65563589,2626.0,2624.8,0.0011]
[1769867231956,0.95205453,2625.9,2624.8,0.0011]
[1769867232327,1.05443991,2626.0,2624.8,0.0011]
[1769867232529,0.35261223,2625.9,2624.8,0.0011]
[1769867233930,1.30466759,2625.9,2624.8,0.0011]
[1769867234157,0.52152563,2625.8,2624.8,0.0011]
[1769867234661,0.32492293,2625.7,2624.8,0.0011]
[1769867236660,1.27705582,2625.7,2624.8,0.0011]
[1769867236867,0.32492293,2625.7,2624.8,0.0011]
[1769867237870,1.27705485,2625.7,2624.8,0.0011]
[1769867238388,13.05945991,2625.6,2624.3,0.0011]
[1769867239843,0.50855305,2625.6,2624.3,12.92566271]
[1769867240034,0.32492293,2625.7,2624.3,12.92566271]
[1769867240462,1.27705512,2625.7,2624.3,0.0011]
[1769867240638,0.1024,2625.6,2624.3,0.0011]
[1769867240847,14.31455032,2625.6,2624.3,0.0011]
[1769867241332,0.32492293,2625.7,2624.3,12.92566271]
[1769867241536,1.27706021,2625.7,2624.3,0.0011]
[1769867241755,0.1024,2625.6,2624.3,0.0011]
[1769867241967,0.1024,2625.6,2625.0,0.0011]
[1769867242173,1.86604753,2625.6,2625.0,0.0011]
[1769867242355,0.1024,2625.6,2625.0,0.0011]
[1769867243078,0.32492293,2625.7,2625.0,0.0011]
[1769867245371,13.69335755,2626.9,2625.0,12.92566271]
[1769867245679,0.32800479,2626.8,2625.0,12.92566271]
[1769867246183,0.1024,2626.7,2625.0,12.92566271]
[1769867246574,0.32800479,2626.8,2625.2,12.92456271]
[1769867246753,0.32800479,2626.8,2625.6,12.92456271]
[1769867247779,12.44850686,2627.8,2625.8,12.92456271]
[1769867247984,13.39988925,2627.8,2625.8,12.92456271]
[1769867248164,0.1024,2627.7,2625.8,12.92456271]
[1769867248754,0.1024,2627.7,2626.0,12.92456271]
[1769867248969,0.1024,2627.7,2626.2,12.92456271]
[1769867249363,0.32355965,2627.9,2626.2,12.92456271]
[1769867249772,0.1024,2627.8,2626.2,13.72256271]
[1769867250155,0.32355965,2627.9,2626.2,13.72256271]
[1769867250356,0.32355965,2627.9,2626.4,12.92456271]
[1769867250791,0.32355965,2627.9,2626.8,12.92456271]
[1769867250991,0.798,2628.7,2626.8,12.92456271]
[1769867251191,0.798,2628.7,2626.7,0.95176457]
[1769867251192,12.44850686,2629.0,2627.0,12.92456271]
[1769867251396,1.24485069,2628.9,2627.2,12.92456271]
[1769867251761,12.44850686,2628.7,2627.1,0.94635903]
[1769867251967,12.44850686,2628.7,2627.0,0.798]
[1769867252870,0.1024,2628.8,2627.0,13.72256271]
[1769867253396,0.1024,2628.8,2627.0,12.92456271]
[1769867254289,0.001,2628.5,2627.0,12.92456271]
[1769867254492,0.001,2628.5,2627.2,12.92456271]
[1769867259792,0.001,2628.5,2627.2,13.87614361]
[1769867260198,0.001,2628.5,2627.2,12.92456271]
[1769867260598,0.001,2628.5,2627.1,1.46742402]
[1769867260599,0.001,2628.5,2627.3,14.28026326]
[1769867260921,0.001,2628.5,2627.4,0.798]
[1769867261093,0.001,2628.5,2627.5,0.86662575]
[1769867261598,13.23449991,2628.2,2626.5,13.48226326]
[1769867261771,13.23449991,2628.2,2626.5,14.28026326]
[1769867264309,13.23449991,2627.4,2625.2,14.43457078]
[1769867264475,15.04018586,2627.3,2625.4,13.48226326]
[1769867265203,14.18608334,2627.2,2625.4,13.48226326]
[1769867265404,14.6683193,2627.2,2625.4,13.48226326]
[1769867265876,13.23449991,2627.0,2625.4,13.48226326]
[1769867266199,13.23449991,2626.8,2625.5,1.57237203]
[1769867266507,13.23449991,2626.8,2625.0,14.28136326]
[1769867266864,13.23449991,2626.8,2625.4,0.0011]
[1769867267295,14.18625688,2626.8,2625.4,0.0011]
[1769867267793,13.23449991,2626.8,2625.4,0.0011]
[1769867267992,2.27516469,2626.9,2625.4,0.0011]
[1769867267993,1.32344999,2626.9,2625.4,0.0011]
[1769867268213,0.1024,2627.0,2625.4,14.83169959]
[1769867268388,13.23449991,2626.9,2625.4,1.34943633]
[1769867268582,13.23449991,2626.9,2625.4,0.0011]
[1769867268982,0.1024,2627.0,2625.4,0.0011]
[1769867268983,13.23449991,2626.7,2625.4,0.0011]
[1769867269183,13.23449991,2626.5,2625.4,0.0011]
[1769867269813,13.23449991,2626.5,2625.0,0.0011]
[1769867270014,0.1024,2626.3,2625.0,0.0011]
[1769867270795,14.66843835,2626.9,2625.1,13.48226326]
[1769867271110,13.33689991,2626.8,2625.1,13.48226326]
[1769867271320,14.28865611,2626.8,2625.1,13.48226326]
[1769867271485,1.42886561,2626.7,2625.2,1.34833633]
[1769867272417,15.61514305,2626.7,2625.2,1.34833633]
[1769867272613,14.66336552,2626.7,2625.2,1.34833633]
[1769867273307,1.42886561,2626.7,2625.2,14.83059959]
[1769867273512,0.1024,2626.8,2625.3,1.48305996]
[1769867273817,14.28861818,2626.9,2625.3,1.48305996]
[1769867274005,13.33689991,2626.9,2625.3,14.96532322]